[Event "Early-Titled-Tuesday-Blitz-July-09-2024"]
[Site "Chess.com"]
[Date "2024.07.09"]
[Round "2"]
[White "Igor_Janik"]
[Black "Sadykov_Ramil"]
[Result "1/2-1/2"]
[WhiteElo "2890"]
[BlackElo "2616"]
[TimeControl "180+1"]
[EndTime "8:18:47 PDT"]
[Termination "Game drawn - insufficient material"]

1. e4 {[%clk 0:03:00.9]} 1... e5 {[%clk 0:02:59.9]} 2. Nf3 {[%clk 0:02:59.8]}
2... Nc6 {[%clk 0:03:00.2]} 3. Bc4 {[%clk 0:02:58.7]} 3... Bc5 {[%clk
0:02:59.5]} 4. O-O {[%clk 0:02:57.2]} 4... Nf6 {[%clk 0:02:58.1]} 5. d4 {[%clk
0:02:57.7]} 5... exd4 {[%clk 0:02:24.1]} 6. e5 {[%clk 0:02:56.6]} 6... d5 {[%clk
0:02:24.6]} 7. exf6 {[%clk 0:02:56.5]} 7... dxc4 {[%clk 0:02:24.6]} 8. fxg7
{[%clk 0:02:56.9]} 8... Rg8 {[%clk 0:02:24.7]} 9. Bg5 {[%clk 0:02:57.1]} 9...
Qd6 {[%clk 0:02:10.9]} 10. Nbd2 {[%clk 0:02:55.7]} 10... Qd5 {[%clk 0:01:55.2]}
11. Ne4 {[%clk 0:02:38.4]} 11... Be7 {[%clk 0:01:45.8]} 12. Re1 {[%clk
0:02:36.9]} 12... Be6 {[%clk 0:01:43.7]} 13. Nf6+ {[%clk 0:02:34.4]} 13... Bxf6
{[%clk 0:01:43.4]} 14. Bxf6 {[%clk 0:02:34.5]} 14... Qf5 {[%clk 0:01:25.5]} 15.
Bxd4 {[%clk 0:02:20.1]} 15... O-O-O {[%clk 0:01:19.5]} 16. c3 {[%clk 0:02:16.3]}
16... Qg4 {[%clk 0:00:58]} 17. Ne5 {[%clk 0:01:42]} 17... Qxg7 {[%clk
0:00:53.4]} 18. g3 {[%clk 0:01:32.6]} 18... Nxe5 {[%clk 0:00:31.2]} 19. Rxe5
{[%clk 0:01:31.1]} 19... Qxe5 {[%clk 0:00:26.7]} 20. Bxe5 {[%clk 0:01:31.2]}
20... Rxd1+ {[%clk 0:00:27.4]} 21. Rxd1 {[%clk 0:01:31.8]} 21... Rd8 {[%clk
0:00:25.8]} 22. Rxd8+ {[%clk 0:01:24]} 22... Kxd8 {[%clk 0:00:26.7]} 23. f3
{[%clk 0:01:24.6]} 23... Bd5 {[%clk 0:00:24.5]} 24. Kf2 {[%clk 0:01:24.9]} 24...
Kd7 {[%clk 0:00:22.7]} 25. Ke3 {[%clk 0:01:25.4]} 25... c5 {[%clk 0:00:19]} 26.
g4 {[%clk 0:01:25.2]} 26... Ke6 {[%clk 0:00:16.7]} 27. Bb8 {[%clk 0:01:24.5]}
27... a6 {[%clk 0:00:14.4]} 28. Kf4 {[%clk 0:01:23.8]} 28... f6 {[%clk
0:00:13.2]} 29. h3 {[%clk 0:01:17.7]} 29... b5 {[%clk 0:00:12]} 30. Ba7 {[%clk
0:01:15.9]} 30... Bc6 {[%clk 0:00:06.3]} 31. Bxc5 {[%clk 0:01:15.3]} 31... Bd5
{[%clk 0:00:06.4]} 32. Bb6 {[%clk 0:01:13.6]} 32... Bc6 {[%clk 0:00:06.1]} 33.
Bd8 {[%clk 0:01:13.8]} 33... Bd5 {[%clk 0:00:05.9]} 34. Ke3 {[%clk 0:01:12.8]}
34... Bc6 {[%clk 0:00:02.2]} 35. f4 {[%clk 0:01:04.4]} 35... Bg2 {[%clk
0:00:01.7]} 36. h4 {[%clk 0:01:05]} 36... Bh3 {[%clk 0:00:01.8]} 37. g5 {[%clk
0:01:05.4]} 37... fxg5 {[%clk 0:00:01.8]} 38. hxg5 {[%clk 0:01:05.8]} 38... Kd5
{[%clk 0:00:01.5]} 39. Kf3 {[%clk 0:01:05.1]} 39... Bf5 {[%clk 0:00:02.1]} 40.
Kg3 {[%clk 0:01:04.8]} 40... Ke6 {[%clk 0:00:02.4]} 41. Kh4 {[%clk 0:01:04.7]}
41... Kf7 {[%clk 0:00:02.7]} 42. Kh5 {[%clk 0:01:04.2]} 42... Bg6+ {[%clk
0:00:02.5]} 43. Kg4 {[%clk 0:01:04.3]} 43... Ke6 {[%clk 0:00:03]} 44. a3 {[%clk
0:01:00.4]} 44... Bf5+ {[%clk 0:00:03]} 45. Kh5 {[%clk 0:01:00.2]} 45... Kf7
{[%clk 0:00:03.5]} 46. Bb6 {[%clk 0:00:59.3]} 46... Ke6 {[%clk 0:00:03.9]} 47.
Bc7 {[%clk 0:00:57.2]} 47... Kf7 {[%clk 0:00:04.3]} 48. Kh4 {[%clk 0:00:57.8]}
48... Ke6 {[%clk 0:00:04.6]} 49. Kg3 {[%clk 0:00:58.5]} 49... Kd5 {[%clk
0:00:05]} 50. Kf2 {[%clk 0:00:59.2]} 50... Bg6 {[%clk 0:00:05.4]} 51. Ke3 {[%clk
0:00:59.8]} 51... Bf5 {[%clk 0:00:05.8]} 52. Kd2 {[%clk 0:00:59.9]} 52... Bg6
{[%clk 0:00:06.4]} 53. Kc1 {[%clk 0:00:57.2]} 53... Ke4 {[%clk 0:00:06.5]} 54.
Kb1 {[%clk 0:00:56.8]} 54... Kd5+ {[%clk 0:00:03.3]} 55. Ka2 {[%clk 0:00:56.9]}
55... Bf5 {[%clk 0:00:03.7]} 56. a4 {[%clk 0:00:56.1]} 56... bxa4 {[%clk
0:00:02.2]} 57. Ka3 {[%clk 0:00:56.4]} 57... Bc2 {[%clk 0:00:02.5]} 58. Kb4
{[%clk 0:00:56.5]} 58... Bd3 {[%clk 0:00:02.4]} 59. Ka5 {[%clk 0:00:56.7]} 59...
Kc5 {[%clk 0:00:02]} 60. Kxa6 {[%clk 0:00:55.7]} 60... Kc6 {[%clk 0:00:02.3]}
61. Be5 {[%clk 0:00:55.6]} 61... Kd5 {[%clk 0:00:02.5]} 62. Kb5 {[%clk
0:00:55.9]} 62... Bc2 {[%clk 0:00:02.9]} 63. Bd4 {[%clk 0:00:55.9]} 63... Bd3
{[%clk 0:00:02.6]} 64. Kxa4 {[%clk 0:00:55.9]} 64... Bc2+ {[%clk 0:00:03.1]} 65.
Kb4 {[%clk 0:00:55.4]} 65... Bd3 {[%clk 0:00:03.7]} 66. b3 {[%clk 0:00:55.7]}
66... cxb3 {[%clk 0:00:03.3]} 67. Kxb3 {[%clk 0:00:56.6]} 67... Be4 {[%clk
0:00:03]} 68. Be5 {[%clk 0:00:56.1]} 68... Bd3 {[%clk 0:00:03]} 69. Kb4 {[%clk
0:00:56.4]} 69... Be2 {[%clk 0:00:01.9]} 70. Ka5 {[%clk 0:00:56.5]} 70... Kc6
{[%clk 0:00:01.9]} 71. Kb4 {[%clk 0:00:56.7]} 71... Bd3 {[%clk 0:00:02.5]} 72.
Kb3 {[%clk 0:00:57]} 72... Kc5 {[%clk 0:00:02.5]} 73. Kb2 {[%clk 0:00:57.4]}
73... Bc4 {[%clk 0:00:02.8]} 74. Kc1 {[%clk 0:00:58.1]} 74... Kd5 {[%clk
0:00:03.4]} 75. Kd2 {[%clk 0:00:58.8]} 75... Ke4 {[%clk 0:00:03.9]} 76. Bc7
{[%clk 0:00:57.7]} 76... Bd5 {[%clk 0:00:04.2]} 77. Kc2 {[%clk 0:00:57.6]} 77...
Bc4 {[%clk 0:00:04.7]} 78. Kb2 {[%clk 0:00:58.2]} 78... Kd5 {[%clk 0:00:04.6]}
79. f5 {[%clk 0:00:51.5]} 79... Ke4 {[%clk 0:00:02]} 80. g6 {[%clk 0:00:50]}
80... hxg6 {[%clk 0:00:01.7]} 81. fxg6 {[%clk 0:00:50.5]} 81... Kf5 {[%clk
0:00:02.2]} 82. g7 {[%clk 0:00:48]} 82... Kf6 {[%clk 0:00:02.3]} 83. Be5+ {[%clk
0:00:42.7]} 83... Kxe5 {[%clk 0:00:02.3]} 84. Ka3 {[%clk 0:00:41.9]} 84... Kf6
{[%clk 0:00:02.8]} 85. Kb4 {[%clk 0:00:42.8]} 85... Bg8 {[%clk 0:00:02.9]} 86.
c4 {[%clk 0:00:42.6]} 86... Bxc4 {[%clk 0:00:02.7]} 87. Kxc4 {[%clk 0:00:42.9]}
87... Kxg7 {[%clk 0:00:03.3]} 1/2-1/2

[Event "Early-Titled-Tuesday-Blitz-July-09-2024"]
[Site "Chess.com"]
[Date "2024.07.09"]
[Round "2"]
[White "Chemim21"]
[Black "zacachess"]
[Result "0-1"]
[WhiteElo "2184"]
[BlackElo "2465"]
[TimeControl "180+1"]
[EndTime "8:18:48 PDT"]
[Termination "zacachess won on time"]

1. e4 {[%clk 0:03:00.9]} 1... c5 {[%clk 0:02:58.8]} 2. Nf3 {[%clk 0:03:00.4]}
2... d6 {[%clk 0:02:59.1]} 3. d4 {[%clk 0:03:00.1]} 3... cxd4 {[%clk 0:03:00]}
4. Nxd4 {[%clk 0:03:00]} 4... Nf6 {[%clk 0:03:00.4]} 5. Nc3 {[%clk 0:02:59.8]}
5... Nc6 {[%clk 0:03:00.9]} 6. Be3 {[%clk 0:02:58.5]} 6... e5 {[%clk 0:03:00.1]}
7. Nb3 {[%clk 0:02:52.1]} 7... Be7 {[%clk 0:02:59.1]} 8. Be2 {[%clk 0:02:52]}
8... Be6 {[%clk 0:02:58.3]} 9. f3 {[%clk 0:02:51.5]} 9... O-O {[%clk 0:02:57.1]}
10. Qd2 {[%clk 0:02:51.4]} 10... a5 {[%clk 0:02:54]} 11. O-O {[%clk 0:02:36]}
11... a4 {[%clk 0:02:48.4]} 12. Nc1 {[%clk 0:02:33.7]} 12... a3 {[%clk
0:02:48.3]} 13. b3 {[%clk 0:02:32.6]} 13... d5 {[%clk 0:02:44.1]} 14. exd5
{[%clk 0:02:29.5]} 14... Nxd5 {[%clk 0:02:45]} 15. Nxd5 {[%clk 0:02:29.2]} 15...
Qxd5 {[%clk 0:02:37.2]} 16. Qxd5 {[%clk 0:02:27.3]} 16... Bxd5 {[%clk
0:02:38.1]} 17. Nd3 {[%clk 0:02:22.2]} 17... Rfd8 {[%clk 0:02:31.4]} 18. Rfd1
{[%clk 0:01:55.3]} 18... Nd4 {[%clk 0:02:19.3]} 19. Bxd4 {[%clk 0:01:54.4]}
19... exd4 {[%clk 0:02:20.2]} 20. Nf4 {[%clk 0:01:48.9]} 20... Bc6 {[%clk
0:02:17.3]} 21. Bd3 {[%clk 0:01:43.3]} 21... Bg5 {[%clk 0:01:51.3]} 22. Ne2
{[%clk 0:01:43.4]} 22... Be3+ {[%clk 0:01:50.2]} 23. Kf1 {[%clk 0:01:42.9]}
23... b5 {[%clk 0:01:45.9]} 24. Ng3 {[%clk 0:01:39.9]} 24... b4 {[%clk
0:01:38.9]} 25. Nf5 {[%clk 0:01:39.4]} 25... Bg5 {[%clk 0:01:28.5]} 26. Bc4
{[%clk 0:01:25.1]} 26... Bf6 {[%clk 0:01:25.4]} 27. Bd3 {[%clk 0:01:21.3]} 27...
g6 {[%clk 0:01:22]} 28. Ng3 {[%clk 0:01:21.7]} 28... Bg7 {[%clk 0:01:20.6]} 29.
Ne4 {[%clk 0:01:21.7]} 29... h6 {[%clk 0:01:13.6]} 30. Re1 {[%clk 0:01:21.7]}
30... Re8 {[%clk 0:01:04]} 31. Nd2 {[%clk 0:01:21.3]} 31... f5 {[%clk
0:01:01.2]} 32. Nc4 {[%clk 0:01:20.6]} 32... Kf8 {[%clk 0:00:58]} 33. Rxe8+
{[%clk 0:01:20.4]} 33... Rxe8 {[%clk 0:00:58.9]} 34. Re1 {[%clk 0:01:19.6]}
34... Rxe1+ {[%clk 0:00:57.1]} 35. Kxe1 {[%clk 0:01:20.5]} 35... Ke7 {[%clk
0:00:56.7]} 36. Ke2 {[%clk 0:01:19.7]} 36... Bd7 {[%clk 0:00:49.1]} 37. Nb6
{[%clk 0:01:18.9]} 37... Be6 {[%clk 0:00:48.2]} 38. Bc4 {[%clk 0:01:17.6]} 38...
g5 {[%clk 0:00:41.5]} 39. Bxe6 {[%clk 0:01:17.1]} 39... Kxe6 {[%clk 0:00:42.4]}
40. Kd3 {[%clk 0:01:14.2]} 40... Ke5 {[%clk 0:00:35.9]} 41. g3 {[%clk
0:01:11.6]} 41... h5 {[%clk 0:00:29.4]} 42. Nc4+ {[%clk 0:01:11.1]} 42... Kd5
{[%clk 0:00:29.2]} 43. h3 {[%clk 0:01:07.2]} 43... g4 {[%clk 0:00:22.9]} 44.
hxg4 {[%clk 0:01:06.1]} 44... fxg4 {[%clk 0:00:21.5]} 45. fxg4 {[%clk
0:01:01.3]} 45... hxg4 {[%clk 0:00:22.4]} 46. Nb6+ {[%clk 0:00:58.8]} 46... Kc5
{[%clk 0:00:20.7]} 47. Nc4 {[%clk 0:00:53.8]} 47... Kd5 {[%clk 0:00:20.4]} 48.
Nb6+ {[%clk 0:00:53.6]} 48... Kc5 {[%clk 0:00:20.5]} 49. Nc4 {[%clk 0:00:53.6]}
49... Bf6 {[%clk 0:00:20.7]} 50. Ke4 {[%clk 0:00:53.1]} 50... Bd8 {[%clk
0:00:17]} 51. Kf5 {[%clk 0:00:51.3]} 51... d3 {[%clk 0:00:17]} 52. cxd3 {[%clk
0:00:50.7]} 52... Kd4 {[%clk 0:00:17.4]} 53. Kxg4 {[%clk 0:00:50.3]} 53... Kxd3
{[%clk 0:00:17.5]} 54. Ne5+ {[%clk 0:00:44.2]} 54... Kc2 {[%clk 0:00:17.5]} 55.
Nc6 {[%clk 0:00:44.4]} 55... Kb2 {[%clk 0:00:04.9]} 56. Nxb4 {[%clk 0:00:37]}
56... Be7 {[%clk 0:00:05.2]} 57. Nd3+ {[%clk 0:00:36.7]} 57... Kxa2 {[%clk
0:00:04.8]} 58. b4 {[%clk 0:00:35.6]} 58... Kb1 {[%clk 0:00:03.5]} 59. b5 {[%clk
0:00:24.8]} 59... a2 {[%clk 0:00:03.9]} 60. b6 {[%clk 0:00:25.1]} 60... a1=Q
{[%clk 0:00:03.9]} 61. b7 {[%clk 0:00:24.4]} 61... Qa4+ {[%clk 0:00:04.3]} 62.
Nf4 {[%clk 0:00:24]} 62... Qb5 {[%clk 0:00:04.5]} 0-1

[Event "Early-Titled-Tuesday-Blitz-July-09-2024"]
[Site "Chess.com"]
[Date "2024.07.09"]
[Round "2"]
[White "kadirsoria"]
[Black "Zorbos"]
[Result "1/2-1/2"]
[WhiteElo "2233"]
[BlackElo "2685"]
[TimeControl "180+1"]
[EndTime "8:18:49 PDT"]
[Termination "Game drawn by 50-move rule"]

1. e4 {[%clk 0:02:59.8]} 1... e5 {[%clk 0:02:58.8]} 2. Nf3 {[%clk 0:02:59.5]}
2... Nc6 {[%clk 0:02:59]} 3. d4 {[%clk 0:02:59.3]} 3... exd4 {[%clk 0:02:58.1]}
4. Nxd4 {[%clk 0:02:59.2]} 4... Nf6 {[%clk 0:02:58.1]} 5. Nxc6 {[%clk
0:02:57.8]} 5... bxc6 {[%clk 0:02:57.7]} 6. Bd3 {[%clk 0:02:57.3]} 6... Be7
{[%clk 0:02:55.1]} 7. O-O {[%clk 0:02:56.5]} 7... O-O {[%clk 0:02:55.8]} 8. e5
{[%clk 0:02:55.4]} 8... Nd5 {[%clk 0:02:55.9]} 9. c4 {[%clk 0:02:42.7]} 9... Nb4
{[%clk 0:02:54]} 10. Nc3 {[%clk 0:02:22.7]} 10... Nxd3 {[%clk 0:02:46.4]} 11.
Qxd3 {[%clk 0:02:23.6]} 11... d6 {[%clk 0:02:44.8]} 12. Bf4 {[%clk 0:02:19.8]}
12... Be6 {[%clk 0:02:37.7]} 13. exd6 {[%clk 0:02:14.4]} 13... Bxd6 {[%clk
0:02:26.6]} 14. Bxd6 {[%clk 0:02:13.8]} 14... Qxd6 {[%clk 0:02:27.5]} 15. Qxd6
{[%clk 0:02:12.4]} 15... cxd6 {[%clk 0:02:28.4]} 16. b3 {[%clk 0:02:12.5]} 16...
d5 {[%clk 0:02:29.3]} 17. cxd5 {[%clk 0:02:12.3]} 17... cxd5 {[%clk 0:02:30.2]}
18. Rad1 {[%clk 0:02:10.8]} 18... Rfd8 {[%clk 0:02:31.1]} 19. Rd3 {[%clk
0:02:02.1]} 19... Rac8 {[%clk 0:01:48.4]} 20. Rfd1 {[%clk 0:01:51.1]} 20... Kf8
{[%clk 0:01:48.9]} 21. h3 {[%clk 0:01:38.8]} 21... Rc5 {[%clk 0:01:47.9]} 22.
R1d2 {[%clk 0:01:29.4]} 22... a5 {[%clk 0:01:47.3]} 23. Kh2 {[%clk 0:01:15.1]}
23... Ke7 {[%clk 0:01:46.3]} 24. Ne2 {[%clk 0:01:04.6]} 24... a4 {[%clk
0:01:38.9]} 25. bxa4 {[%clk 0:01:02.5]} 25... Ra8 {[%clk 0:01:38.3]} 26. Nc3
{[%clk 0:00:55.9]} 26... Raa5 {[%clk 0:01:38.9]} 27. g4 {[%clk 0:00:52.8]} 27...
g5 {[%clk 0:01:38.5]} 28. Kg3 {[%clk 0:00:47.9]} 28... h6 {[%clk 0:01:37.9]} 29.
f4 {[%clk 0:00:43.2]} 29... Kd7 {[%clk 0:01:38]} 30. f5 {[%clk 0:00:42.3]} 30...
Kc6 {[%clk 0:01:36.3]} 31. fxe6 {[%clk 0:00:42]} 31... fxe6 {[%clk 0:01:37.2]}
32. Re2 {[%clk 0:00:21.5]} 32... Kd7 {[%clk 0:01:37.1]} 33. Rb2 {[%clk
0:00:18.7]} 33... Kc7 {[%clk 0:01:30.4]} 34. Nb5+ {[%clk 0:00:17.1]} 34... Kd7
{[%clk 0:01:30.6]} 35. Nc3 {[%clk 0:00:16.5]} 35... Rc4 {[%clk 0:01:31.2]} 36.
Rb5 {[%clk 0:00:13.5]} 36... Ra8 {[%clk 0:01:30.4]} 37. a5 {[%clk 0:00:12.5]}
37... Ra6 {[%clk 0:01:26.9]} 38. Ne2 {[%clk 0:00:11.4]} 38... Kc6 {[%clk
0:01:25.6]} 39. Rb6+ {[%clk 0:00:08.5]} 39... Rxb6 {[%clk 0:01:25.8]} 40. axb6
{[%clk 0:00:09.4]} 40... Kxb6 {[%clk 0:01:26.4]} 41. Re3 {[%clk 0:00:09.1]}
41... Kc5 {[%clk 0:01:19.6]} 42. Rxe6 {[%clk 0:00:08.7]} 42... Rc2 {[%clk
0:01:20.3]} 43. Kf3 {[%clk 0:00:07.8]} 43... Rxa2 {[%clk 0:01:20]} 44. Rxh6
{[%clk 0:00:05.7]} 44... Ra3+ {[%clk 0:01:20.6]} 45. Kf2 {[%clk 0:00:05.6]}
45... d4 {[%clk 0:01:21.4]} 46. Nxd4 {[%clk 0:00:04.6]} 46... Kxd4 {[%clk
0:01:21.5]} 47. Rh5 {[%clk 0:00:04.1]} 47... Ra5 {[%clk 0:01:21.5]} 48. Kf3
{[%clk 0:00:03.2]} 48... Ra3+ {[%clk 0:01:20.5]} 49. Kg2 {[%clk 0:00:03.3]}
49... Ra5 {[%clk 0:01:21.4]} 50. Kg3 {[%clk 0:00:03.1]} 50... Ke4 {[%clk
0:01:21.1]} 51. h4 {[%clk 0:00:03]} 51... Ra3+ {[%clk 0:01:21.8]} 52. Kg2 {[%clk
0:00:03.2]} 52... Ra2+ {[%clk 0:01:21.2]} 53. Kg3 {[%clk 0:00:03.3]} 53... Ra3+
{[%clk 0:01:22]} 54. Kg2 {[%clk 0:00:03.6]} 54... gxh4 {[%clk 0:01:22.9]} 55.
Rxh4 {[%clk 0:00:03.7]} 55... Kf4 {[%clk 0:01:23.8]} 56. Rh8 {[%clk 0:00:04.1]}
56... Ra2+ {[%clk 0:01:23.7]} 57. Kf1 {[%clk 0:00:04.4]} 57... Kf3 {[%clk
0:01:22.7]} 58. Rf8+ {[%clk 0:00:04.6]} 58... Kxg4 {[%clk 0:01:23.2]} 59. Rf2
{[%clk 0:00:04.8]} 59... Ra1+ {[%clk 0:01:23.3]} 60. Kg2 {[%clk 0:00:05]} 60...
Ra3 {[%clk 0:01:24]} 61. Re2 {[%clk 0:00:05.4]} 61... Rg3+ {[%clk 0:01:24.4]}
62. Kf2 {[%clk 0:00:06.3]} 62... Rf3+ {[%clk 0:01:25]} 63. Kg2 {[%clk
0:00:06.6]} 63... Ra3 {[%clk 0:01:24.1]} 64. Rf2 {[%clk 0:00:07.5]} 64... Rb3
{[%clk 0:01:24.6]} 65. Re2 {[%clk 0:00:07.8]} 65... Rc3 {[%clk 0:01:25.2]} 66.
Rb2 {[%clk 0:00:08]} 66... Ra3 {[%clk 0:01:25.3]} 67. Kf2 {[%clk 0:00:08.3]}
67... Kf4 {[%clk 0:01:24.7]} 68. Rb4+ {[%clk 0:00:08.4]} 68... Ke5 {[%clk
0:01:25.3]} 69. Rb2 {[%clk 0:00:09.2]} 69... Ke4 {[%clk 0:01:25.5]} 70. Re2+
{[%clk 0:00:10.1]} 70... Kf4 {[%clk 0:01:26.1]} 71. Rc2 {[%clk 0:00:10.1]} 71...
Rb3 {[%clk 0:01:26.5]} 72. Rc4+ {[%clk 0:00:10.4]} 72... Ke5 {[%clk 0:01:27.1]}
73. Rc2 {[%clk 0:00:11.2]} 73... Ke4 {[%clk 0:01:27.8]} 74. Re2+ {[%clk
0:00:11.6]} 74... Kf4 {[%clk 0:01:28.4]} 75. Rc2 {[%clk 0:00:12.3]} 75... Rb4
{[%clk 0:01:29.1]} 76. Rd2 {[%clk 0:00:11.6]} 76... Rb3 {[%clk 0:01:29.6]} 77.
Ra2 {[%clk 0:00:11.6]} 77... Rb4 {[%clk 0:01:29.7]} 78. Re2 {[%clk 0:00:11.3]}
78... Rd4 {[%clk 0:01:30.2]} 79. Rc2 {[%clk 0:00:11.3]} 79... Rd3 {[%clk
0:01:30.6]} 80. Rc4+ {[%clk 0:00:10.8]} 80... Ke5 {[%clk 0:01:31.1]} 81. Rc2
{[%clk 0:00:10.9]} 81... Ke4 {[%clk 0:01:31.8]} 82. Rc4+ {[%clk 0:00:11.1]}
82... Kd5 {[%clk 0:01:31.4]} 83. Rh4 {[%clk 0:00:10.7]} 83... Ra3 {[%clk
0:01:31]} 84. Ke2 {[%clk 0:00:10.8]} 84... Ke5 {[%clk 0:01:31.2]} 85. Kd2 {[%clk
0:00:10.4]} 85... Kd5 {[%clk 0:01:31.6]} 86. Kc2 {[%clk 0:00:10.4]} 86... Rg3
{[%clk 0:01:32.3]} 87. Kd2 {[%clk 0:00:10.3]} 87... Ke5 {[%clk 0:01:33.1]} 88.
Ke2 {[%clk 0:00:10.5]} 88... Kf5 {[%clk 0:01:33.8]} 89. Kf2 {[%clk 0:00:10.5]}
89... Ra3 {[%clk 0:01:34.7]} 90. Rb4 {[%clk 0:00:10.5]} 90... Ke5 {[%clk
0:01:34.9]} 91. Ke2 {[%clk 0:00:10.8]} 91... Kd5 {[%clk 0:01:35]} 92. Kd2 {[%clk
0:00:11.2]} 92... Rh3 {[%clk 0:01:35.8]} 93. Rg4 {[%clk 0:00:11.2]} 93... Ke5
{[%clk 0:01:36.3]} 94. Ke2 {[%clk 0:00:11.2]} 94... Rb3 {[%clk 0:01:36.9]} 95.
Kd2 {[%clk 0:00:11.2]} 95... Kf5 {[%clk 0:01:37.6]} 96. Rc4 {[%clk 0:00:11.2]}
96... Rh3 {[%clk 0:01:38]} 97. Ke2 {[%clk 0:00:11.3]} 97... Ke5 {[%clk 0:01:38]}
98. Kf2 {[%clk 0:00:11.4]} 98... Kd5 {[%clk 0:01:38.5]} 99. Ra4 {[%clk
0:00:11.4]} 99... Rb3 {[%clk 0:01:38.8]} 100. Ke2 {[%clk 0:00:11.2]} 100... Kc5
{[%clk 0:01:39.5]} 101. Kd2 {[%clk 0:00:11]} 101... Rg3 {[%clk 0:01:40.2]} 102.
Rf4 {[%clk 0:00:10.8]} 102... Rh3 {[%clk 0:01:40.6]} 103. Ke2 {[%clk 0:00:10.9]}
103... Kb5 {[%clk 0:01:41.2]} 104. Kf2 {[%clk 0:00:11.2]} 104... Kc5 {[%clk
0:01:41.9]} 105. Kg2 {[%clk 0:00:11.4]} 105... Ra3 {[%clk 0:01:42]} 106. Kf2
{[%clk 0:00:11.7]} 106... Kd5 {[%clk 0:01:42.6]} 107. Ke2 {[%clk 0:00:11.5]}
107... Rh3 {[%clk 0:01:42.5]} 108. Kf2 {[%clk 0:00:11.3]} 108... Rb3 {[%clk
0:01:41.8]} 1/2-1/2

[Event "Early-Titled-Tuesday-Blitz-July-09-2024"]
[Site "Chess.com"]
[Date "2024.07.09"]
[Round "2"]
[White "j_coca"]
[Black "Zq1"]
[Result "1-0"]
[WhiteElo "2397"]
[BlackElo "2564"]
[TimeControl "180+1"]
[EndTime "8:18:51 PDT"]
[Termination "j_coca won on time"]

1. f4 {[%clk 0:02:54.7]} 1... d5 {[%clk 0:02:59.3]} 2. Nf3 {[%clk 0:02:55]} 2...
g6 {[%clk 0:02:59.6]} 3. e3 {[%clk 0:02:55.4]} 3... Bg7 {[%clk 0:02:59.8]} 4. d4
{[%clk 0:02:56.3]} 4... Nh6 {[%clk 0:02:52.1]} 5. c3 {[%clk 0:02:57.2]} 5... O-O
{[%clk 0:02:51.3]} 6. Bd3 {[%clk 0:02:57.7]} 6... Bf5 {[%clk 0:02:50.1]} 7. O-O
{[%clk 0:02:58]} 7... Bxd3 {[%clk 0:02:49]} 8. Qxd3 {[%clk 0:02:58.9]} 8... Nd7
{[%clk 0:02:47.4]} 9. Nbd2 {[%clk 0:02:59.3]} 9... e6 {[%clk 0:02:44.5]} 10. e4
{[%clk 0:02:59.7]} 10... c5 {[%clk 0:02:34.4]} 11. e5 {[%clk 0:02:58.4]} 11...
Rc8 {[%clk 0:02:31.4]} 12. h3 {[%clk 0:02:57.4]} 12... f6 {[%clk 0:02:29.7]} 13.
Rf2 {[%clk 0:02:56.4]} 13... Nf5 {[%clk 0:02:21.6]} 14. g4 {[%clk 0:02:55.3]}
14... Ng3 {[%clk 0:02:18.9]} 15. Kg2 {[%clk 0:02:54]} 15... fxe5 {[%clk
0:02:06.7]} 16. fxe5 {[%clk 0:02:44.5]} 16... Ne4 {[%clk 0:01:54.2]} 17. Nxe4
{[%clk 0:02:43.6]} 17... dxe4 {[%clk 0:01:52.6]} 18. Qxe4 {[%clk 0:02:44.5]}
18... Qc7 {[%clk 0:01:47.9]} 19. Bg5 {[%clk 0:02:42]} 19... cxd4 {[%clk
0:01:43.6]} 20. cxd4 {[%clk 0:02:41.5]} 20... Nb6 {[%clk 0:01:43.5]} 21. Raf1
{[%clk 0:02:38.7]} 21... Nd5 {[%clk 0:01:42.8]} 22. h4 {[%clk 0:02:35]} 22...
Qc6 {[%clk 0:01:42]} 23. Kg3 {[%clk 0:02:29.3]} 23... Rf7 {[%clk 0:01:34.2]} 24.
h5 {[%clk 0:02:28.3]} 24... gxh5 {[%clk 0:01:27.8]} 25. gxh5 {[%clk 0:02:25.9]}
25... h6 {[%clk 0:01:27]} 26. Bc1 {[%clk 0:02:15.7]} 26... Rcf8 {[%clk
0:01:22.9]} 27. Qg6 {[%clk 0:02:07.2]} 27... Ne7 {[%clk 0:01:21.9]} 28. Qg4
{[%clk 0:01:57.8]} 28... Nf5+ {[%clk 0:01:14.8]} 29. Kh3 {[%clk 0:00:41.7]}
29... b5 {[%clk 0:00:53.4]} 30. Nh4 {[%clk 0:00:31.8]} 30... Nxh4 {[%clk
0:00:50.9]} 31. Rxf7 {[%clk 0:00:23.9]} 31... Rxf7 {[%clk 0:00:51]} 32. Rxf7
{[%clk 0:00:22.6]} 32... Qh1+ {[%clk 0:00:48.6]} 33. Kg3 {[%clk 0:00:20.6]}
33... Kxf7 {[%clk 0:00:46.3]} 34. Qxh4 {[%clk 0:00:13.9]} 34... Qxc1 {[%clk
0:00:43.3]} 35. Kf3 {[%clk 0:00:14]} 35... Qd1+ {[%clk 0:00:40.5]} 36. Ke4
{[%clk 0:00:13.1]} 36... Qe2+ {[%clk 0:00:39.7]} 37. Kf4 {[%clk 0:00:13.4]}
37... Qxb2 {[%clk 0:00:35.3]} 38. Ke4 {[%clk 0:00:11.6]} 38... Qe2+ {[%clk
0:00:34.3]} 39. Kf4 {[%clk 0:00:11.9]} 39... Bf8 {[%clk 0:00:30.9]} 40. Qf6+
{[%clk 0:00:11]} 40... Ke8 {[%clk 0:00:29]} 41. Qxe6+ {[%clk 0:00:11.4]} 41...
Be7 {[%clk 0:00:29.3]} 42. Qc8+ {[%clk 0:00:12]} 42... Kf7 {[%clk 0:00:29]} 43.
Qf5+ {[%clk 0:00:12.3]} 43... Kg7 {[%clk 0:00:28.7]} 44. Qg6+ {[%clk 0:00:12.1]}
44... Kf8 {[%clk 0:00:27.4]} 45. Qf5+ {[%clk 0:00:12.6]} 45... Ke8 {[%clk
0:00:24.5]} 46. Qc8+ {[%clk 0:00:12.9]} 46... Bd8 {[%clk 0:00:24.5]} 47. Qe6+
{[%clk 0:00:13.1]} 47... Kf8 {[%clk 0:00:24.5]} 48. Qf5+ {[%clk 0:00:11.3]}
48... Ke7 {[%clk 0:00:23]} 49. Qf6+ {[%clk 0:00:11.9]} 49... Kd7 {[%clk
0:00:23]} 50. Qd6+ {[%clk 0:00:12.8]} 50... Kc8 {[%clk 0:00:21.9]} 51. Qc6+
{[%clk 0:00:13.7]} 51... Bc7 {[%clk 0:00:21.8]} 52. Qa8+ {[%clk 0:00:14.2]}
52... Kd7 {[%clk 0:00:21.5]} 53. Qd5+ {[%clk 0:00:14.8]} 53... Ke7 {[%clk
0:00:21.5]} 54. Qc5+ {[%clk 0:00:15.3]} 54... Kd7 {[%clk 0:00:18.8]} 55. Qd5+
{[%clk 0:00:15.9]} 55... Kc8 {[%clk 0:00:19.3]} 56. Qa8+ {[%clk 0:00:16.1]}
56... Bb8 {[%clk 0:00:18.3]} 57. Qc6+ {[%clk 0:00:16.3]} 57... Kd8 {[%clk
0:00:18.9]} 58. Qf6+ {[%clk 0:00:14.5]} 58... Kc7 {[%clk 0:00:18.2]} 59. Qe7+
{[%clk 0:00:14.9]} 59... Kc6 {[%clk 0:00:15.1]} 60. Qe8+ {[%clk 0:00:14.8]}
60... Kd5 {[%clk 0:00:13.9]} 61. Qd8+ {[%clk 0:00:13.9]} 61... Kc4 {[%clk
0:00:13]} 62. Qxb8 {[%clk 0:00:14.4]} 62... Qf2+ {[%clk 0:00:08.3]} 63. Ke4
{[%clk 0:00:14.3]} 63... Qe2+ {[%clk 0:00:08.2]} 64. Kf5 {[%clk 0:00:15.1]}
64... Qxh5+ {[%clk 0:00:07.6]} 65. Ke6 {[%clk 0:00:14.7]} 65... Kxd4 {[%clk
0:00:06.2]} 66. Qd6+ {[%clk 0:00:14.2]} 66... Ke4 {[%clk 0:00:06]} 67. Qd5+
{[%clk 0:00:14.5]} 67... Ke3 {[%clk 0:00:06.1]} 68. Qxb5 {[%clk 0:00:15.1]}
68... Qg6+ {[%clk 0:00:05.4]} 69. Kd5 {[%clk 0:00:15.5]} 69... Qe4+ {[%clk
0:00:04.5]} 70. Kd6 {[%clk 0:00:16]} 70... Qg6+ {[%clk 0:00:03.4]} 71. e6 {[%clk
0:00:15.9]} 71... Qf6 {[%clk 0:00:02.8]} 72. Qc5+ {[%clk 0:00:15.1]} 72... Ke4
{[%clk 0:00:01.1]} 73. Qd5+ {[%clk 0:00:15.3]} 73... Kf4 {[%clk 0:00:01.7]} 74.
Qd2+ {[%clk 0:00:12.9]} 1-0